bitfinex/quotes_BTCUSD_20240101
["timestamp","ask_amount","ask_price","bid_price","bid_amount"]
[1704124556499,0.002,42852.0,42851.0,0.0624]
[1704124556952,0.3,42857.0,42851.0,0.06713467]
[1704124557168,0.3,42857.0,42851.0,0.0614]
[1704124557588,0.003,42852.0,42851.0,0.0614]
[1704124557976,0.093467,42855.0,42851.0,0.0614]
[1704124558872,0.093467,42855.0,42851.0,0.0624]
[1704124559078,0.093467,42855.0,42851.0,0.0614]
[1704124559289,0.093467,42855.0,42851.0,0.0624]
[1704124559527,0.100467,42855.0,42851.0,0.0634]
[1704124559973,0.100467,42855.0,42851.0,0.0624]
[1704124560186,0.107467,42855.0,42851.0,0.0624]
[1704124561511,0.574157,42855.0,42851.0,0.0624]
[1704124562747,0.107467,42855.0,42854.0,0.0614]
[1704124562957,0.014,42855.0,42854.0,0.0614]
[1704124563439,0.014,42855.0,42854.0,0.06658985]
[1704124563644,0.007,42855.0,42854.0,0.06658985]
[1704124564069,0.470656,42859.0,42857.0,0.0614]
[1704124564721,0.470656,42859.0,42858.0,0.00517517]
[1704124565152,0.470656,42859.0,42857.0,0.0614]
[1704124565357,0.470656,42859.0,42858.0,0.00517517]
[1704124565575,0.470656,42859.0,42857.0,0.0614]
[1704124565841,0.470656,42859.0,42858.0,0.00517517]
[1704124566276,0.470656,42859.0,42857.0,0.0614]
[1704124566487,0.470656,42859.0,42858.0,0.00517517]
[1704124566899,0.470656,42859.0,42857.0,0.0644]
[1704124567120,0.470656,42859.0,42858.0,0.00917517]
[1704124567807,0.004,42859.0,42858.0,0.00917517]
[1704124568014,0.470654,42859.0,42858.0,0.00917517]
[1704124568202,0.004,42859.0,42858.0,0.00917517]
[1704124568473,0.470654,42859.0,42858.0,0.004]
[1704124568690,0.470654,42859.0,42858.0,0.007]
[1704124569334,0.004,42859.0,42858.0,0.30161711]
[1704124569555,0.004,42859.0,42858.0,0.36087711]
[1704124569773,0.004,42859.0,42858.0,0.82753411]
[1704124570208,0.466549,42868.0,42866.0,0.0614]
[1704124570864,0.466549,42868.0,42867.0,0.0614]
[1704124571789,0.476549,42868.0,42867.0,0.0614]
[1704124571997,0.466549,42868.0,42867.0,0.0614]
[1704124572471,0.480549,42868.0,42867.0,0.0624]
[1704124572890,0.470049,42868.0,42867.0,0.0624]
[1704124573130,0.007,42868.0,42867.0,0.0624]
[1704124573796,0.014,42868.0,42867.0,0.0624]
[1704124576281,0.10728685,42868.0,42867.0,0.0624]
[1704124577125,0.014,42868.0,42867.0,0.0624]
[1704124578215,0.007,42868.0,42867.0,0.0614]
[1704124578651,0.005,42868.0,42867.0,0.0614]
[1704124579117,0.10328685,42868.0,42867.0,0.0614]
[1704124579770,0.01,42868.0,42867.0,0.0614]
[1704124580666,0.10328685,42868.0,42867.0,0.0614]
[1704124580909,0.10291801,42868.0,42867.0,0.0614]
[1704124581330,0.00963116,42868.0,42867.0,0.0614]
[1704124583929,0.00963116,42868.0,42865.0,0.01]
[1704124583930,0.56946601,42868.0,42866.0,0.0614]
[1704124584138,0.56946601,42868.0,42865.0,0.01]
[1704124584139,0.47617916,42868.0,42865.0,0.01]
[1704124584356,0.47617916,42868.0,42867.0,0.0614]
[1704124584777,0.471548,42868.0,42867.0,0.0614]
[1704124585190,0.475548,42868.0,42867.0,0.0614]
[1704124585399,0.471548,42868.0,42867.0,0.0614]
[1704124585818,0.475548,42868.0,42866.0,0.0614]
[1704124586026,0.470548,42868.0,42866.0,0.0614]
[1704124586256,0.470548,42868.0,42867.0,0.0614]
[1704124586467,0.56883485,42868.0,42867.0,0.0614]
[1704124587086,0.475548,42868.0,42867.0,0.0614]
[1704124587292,0.470548,42868.0,42867.0,0.0614]
[1704124587498,0.471548,42868.0,42867.0,0.0614]
[1704124587926,0.475548,42868.0,42867.0,0.0614]
[1704124588133,0.471548,42868.0,42867.0,0.0614]
[1704124588961,0.475548,42868.0,42867.0,0.0614]
[1704124589790,0.475548,42868.0,42866.0,0.0614]
[1704124589996,0.475548,42868.0,42867.0,0.0614]
[1704124590638,0.471548,42868.0,42867.0,0.0614]
[1704124590846,0.466548,42868.0,42867.0,0.0614]
[1704124591054,0.475548,42868.0,42865.0,0.01]
[1704124591264,0.471548,42868.0,42866.0,0.0614]
[1704124591473,0.475548,42868.0,42867.0,0.0614]
[1704124591679,0.475548,42868.0,42866.0,0.0614]
[1704124591680,0.466559,42867.0,42866.0,0.0614]
[1704124593578,0.469559,42867.0,42866.0,0.0614]
[1704124593993,0.472559,42867.0,42866.0,0.0614]
[1704124601035,0.006,42867.0,42866.0,0.0614]
[1704124601903,0.21817505,42874.0,42866.0,0.0614]
[1704124601904,0.3,42873.0,42866.0,0.0614]
[1704124602113,0.003,42867.0,42866.0,0.0614]
[1704124602740,0.003,42867.0,42866.0,0.0644]
[1704124603170,0.466548,42868.0,42866.0,0.0644]
[1704124603376,0.466548,42868.0,42867.0,0.0614]
[1704124603791,0.466548,42868.0,42866.0,0.0644]
[1704124604003,0.466548,42868.0,42866.0,0.0614]
[1704124604224,0.466548,42868.0,42866.0,0.0624]
[1704124604427,0.466548,42868.0,42866.0,0.0634]
[1704124604848,0.466548,42868.0,42867.0,0.0624]
[1704124605115,0.466548,42868.0,42867.0,0.0614]
[1704124605387,0.466548,42868.0,42865.0,0.01]
[1704124605388,0.04806,42872.0,42866.0,0.0634]
[1704124605615,0.466548,42868.0,42867.0,0.0614]
[1704124606083,0.466548,42868.0,42867.0,0.0624]
[1704124607171,0.466548,42868.0,42867.0,0.001]
[1704124607592,0.466548,42868.0,42867.0,0.002]
[1704124607593,0.396548,42868.0,42867.0,0.002]
[1704124608433,0.466548,42868.0,42867.0,0.002]
[1704124609509,0.79976511,42868.0,42867.0,0.002]
[1704124609723,1.72582326,42868.0,42867.0,0.002]
[1704124610153,2.03051386,42868.0,42867.0,0.002]
[1704124610635,2.05841014,42868.0,42867.0,0.001]
[1704124610848,2.17945699,42868.0,42867.0,0.001]
[1704124611062,2.17945699,42868.0,42853.0,0.05]
[1704124611063,0.466673,42857.0,42856.0,0.0614]
[1704124611271,0.09328685,42857.0,42853.0,0.1114]
[1704124611508,0.09328685,42856.0,42853.0,0.05]
[1704124611757,0.466643,42860.0,42853.0,0.05]
[1704124611963,0.06162,42861.0,42853.0,0.05]
[1704124611964,0.466675,42857.0,42854.0,0.0614]
[1704124612178,0.1216169,42859.0,42850.0,1.8571]
[1704124612417,0.41709247,42860.0,42850.0,1.8571]
[1704124612418,0.05064,42856.0,42850.0,1.8571]
[1704124612649,0.4667,42854.0,42850.0,1.8571]
[1704124613122,0.4667,42854.0,42853.0,0.001]
[1704124613333,0.5226169,42854.0,42853.0,0.001]
[1704124613573,0.4667,42854.0,42853.0,0.007]
[1704124613996,0.4667,42854.0,42853.0,0.001]
[1704124614247,0.466719,42853.0,42850.0,1.2]
[1704124617521,0.467719,42853.0,42852.0,0.0614]
[1704124617729,0.001,42853.0,42852.0,0.0614]
[1704124618407,0.49424238,42860.0,42856.0,0.0614]
[1704124618626,0.3,42859.0,42856.0,0.0614]
[1704124618838,0.766647,42859.0,42856.0,0.0614]
[1704124619261,0.466647,42859.0,42858.0,0.0614]
[1704124619470,0.2978,42866.0,42859.0,0.0614]
[1704124619679,0.23321711,42866.0,42859.0,0.0614]
[1704124619886,0.23321711,42866.0,42860.0,0.2243]
[1704124619887,0.3,42865.0,42860.0,0.2243]
[1704124620756,0.466615,42862.0,42860.0,0.2243]
[1704124621393,0.466615,42862.0,42860.0,0.2253]
[1704124621844,0.466615,42862.0,42860.0,0.2243]
[1704124622077,0.477615,42862.0,42860.0,0.2253]
[1704124622521,0.517624,42861.0,42860.0,0.2253]
[1704124622745,0.517624,42861.0,42860.0,0.001]
[1704124622959,1.46004111,42861.0,42860.0,0.002]
[1704124623202,1.54391647,42861.0,42860.0,0.002]
[1704124623415,1.44461647,42861.0,42860.0,0.002]
[1704124623847,0.1,42859.0,42852.0,0.2788]
[1704124624057,0.466679,42857.0,42852.0,0.2788]
[1704124624498,0.08768,42858.0,42852.0,0.2174]
[1704124624499,0.522782,42856.0,42852.0,0.2174]
[1704124624934,0.04944,42855.0,42852.0,0.2174]
[1704124625167,0.04944,42855.0,42850.0,1.21]
[1704124625168,0.466701,42854.0,42850.0,1.2]
[1704124625538,0.04596,42853.0,42850.0,1.2]
[1704124625763,0.466701,42854.0,42850.0,1.2]
[1704124625914,0.048,42853.0,42850.0,1.2]
[1704124626121,0.514711,42853.0,42850.0,1.2]
[1704124626723,0.466711,42853.0,42850.0,1.2]
[1704124627165,0.466711,42853.0,42850.0,1.201]
[1704124627367,0.466711,42853.0,42850.0,1.204]
[1704124627572,0.466711,42853.0,42850.0,1.203]
[1704124628025,0.466711,42853.0,42850.0,1.205]
[1704124628857,0.466733,42851.0,42850.0,1.205]
[1704124629060,1.12295011,42851.0,42850.0,1.205]
[1704124629303,1.20767011,42851.0,42850.0,1.205]
[1704124629704,1.43663011,42851.0,42850.0,1.202]
[1704124629935,1.43663011,42851.0,42850.0,1.2]
[1704124630124,1.49242233,42851.0,42850.0,1.205]
[1704124630373,1.43663011,42851.0,42850.0,1.205]
[1704124630580,1.49342233,42851.0,42850.0,1.206]
[1704124630964,1.50642233,42851.0,42850.0,1.201]
[1704124631200,1.52042233,42851.0,42850.0,1.202]
[1704124631414,1.45063011,42851.0,42850.0,1.201]
[1704124631620,1.53721541,42851.0,42850.0,1.201]
[1704124631882,0.1,42841.0,42837.0,0.05]
[1704124632196,0.1,42841.0,42833.0,0.0614]
[1704124632197,0.466875,42838.0,42833.0,0.0614]
[1704124632405,0.466875,42838.0,42824.0,0.548646]
[1704124632406,0.56016185,42838.0,42834.0,0.2304]
[1704124632635,0.35604,42837.0,42833.0,0.0614]
[1704124633681,0.04596,42836.0,42834.0,0.001]
[1704124633888,0.04596,42836.0,42832.0,0.2304]
[1704124634306,0.06834,42836.0,42832.0,0.2304]
[1704124634679,0.76845911,42836.0,42832.0,0.2304]
[1704124634881,0.46691,42835.0,42832.0,0.2304]
[1704124635095,0.54353,42835.0,42832.0,0.2304]
[1704124635299,0.65621711,42834.0,42824.0,0.09022]
[1704124635499,0.466953,42831.0,42825.0,0.2192]
[1704124636093,0.04968,42830.0,42825.0,0.2192]
[1704124636327,0.04968,42830.0,42827.0,0.0614]
[1704124636498,0.466953,42831.0,42827.0,0.0614]
[1704124636896,0.466963,42830.0,42827.0,0.0614]
[1704124637105,0.467963,42830.0,42825.0,0.2262]
[1704124637307,0.466974,42829.0,42825.0,0.2262]
[1704124637511,0.525714,42829.0,42825.0,0.2312]
[1704124637716,0.525714,42829.0,42825.0,0.2242]
[1704124637926,0.0465,42828.0,42827.0,0.007]
[1704124638334,0.466974,42829.0,42827.0,0.007]
[1704124638760,0.001,42830.0,42828.0,0.0614]
[1704124638974,0.466973,42829.0,42827.0,0.007]
[1704124639171,0.466973,42829.0,42825.0,0.2192]
[1704124639379,0.466973,42829.0,42825.0,0.2252]
[1704124639688,0.468973,42829.0,42825.0,0.2192]
[1704124640187,0.23321711,42828.0,42825.0,0.2192]
[1704124640440,0.467006,42826.0,42825.0,0.001]
[1704124640683,0.70022311,42826.0,42825.0,0.002]
[1704124640949,1.07780311,42826.0,42824.0,0.02882]
[1704124641183,0.3,42825.0,42824.0,0.02882]
[1704124641401,1.26183311,42825.0,42824.0,0.02882]
[1704124641618,1.44207311,42825.0,42824.0,0.02882]
[1704124642528,1.44207311,42825.0,42824.0,0.03257447]
[1704124643186,1.35195311,42825.0,42824.0,0.03257447]
[1704124643403,1.46457311,42825.0,42824.0,0.03357447]
[1704124643619,1.36695311,42825.0,42824.0,0.02982]
[1704124644108,1.46757311,42825.0,42824.0,0.02982]
[1704124644539,1.46757311,42825.0,42824.0,0.02972047]
[1704124644770,1.48057311,42825.0,42824.0,0.03072047]
[1704124645833,1.46757311,42825.0,42824.0,0.02972047]
[1704124646050,1.45257311,42825.0,42824.0,0.02872047]
[1704124646263,1.48057311,42825.0,42824.0,0.03072047]
[1704124646474,1.35277311,42825.0,42824.0,0.03072047]
[1704124647112,1.28983311,42825.0,42824.0,0.03072047]
[1704124647569,1.10373311,42825.0,42824.0,0.03072047]
[1704124647788,1.05123311,42825.0,42824.0,0.03072047]
[1704124648002,1.05123311,42825.0,42824.0,0.03421102]
[1704124648003,0.82268021,42825.0,42824.0,0.03421102]
[1704124648222,0.52268021,42825.0,42824.0,0.03421102]
[1704124648433,0.52268021,42825.0,42824.0,0.03072047]
[1704124648690,0.028,42825.0,42824.0,0.03072047]
[1704124648928,0.028,42825.0,42824.0,0.10212047]
[1704124649358,0.015,42825.0,42824.0,0.10112047]
[1704124649570,0.02799207,42833.0,42825.0,0.01]
[1704124649778,0.02799207,42833.0,42829.0,0.0614]
[1704124649985,0.566898,42836.0,42829.0,0.0614]
[1704124649986,0.05226,42835.0,42829.0,0.0614]
[1704124650229,0.28547711,42835.0,42829.0,0.0614]
[1704124650436,0.23321711,42835.0,42829.0,0.0614]
[1704124651477,0.3,42834.0,42829.0,0.0614]
[1704124652110,0.34638,42834.0,42829.0,0.0624]
[1704124652322,0.35196711,42833.0,42829.0,0.002]
[1704124652540,0.1,42830.0,42829.0,0.002]
[1704124652750,0.35621711,42830.0,42826.0,0.2269]
[1704124652964,0.999066,42832.0,42829.0,0.002]
[1704124652965,0.925206,42832.0,42829.0,0.002]
[1704124653174,0.860466,42832.0,42829.0,0.001]
[1704124653381,0.860466,42832.0,42828.0,0.0614]
[1704124653581,0.860466,42832.0,42829.0,0.001]
[1704124653800,0.003,42830.0,42828.0,0.0614]
[1704124654858,0.860466,42832.0,42828.0,0.0614]
[1704124655081,0.867466,42832.0,42829.0,0.001]
[1704124655312,0.866466,42832.0,42828.0,0.0624]
[1704124655693,0.004,42830.0,42828.0,0.0624]
[1704124655917,0.004,42830.0,42828.0,0.0614]
[1704124656064,0.004,42830.0,42829.0,0.001]
[1704124656264,0.866466,42832.0,42829.0,0.001]
[1704124656695,0.867466,42832.0,42829.0,0.0624]
[1704124656904,0.860466,42832.0,42829.0,0.0614]
[1704124657947,0.003,42830.0,42829.0,0.0614]
[1704124658152,0.007,42830.0,42829.0,0.0614]
[1704124658360,0.004,42830.0,42829.0,0.0614]
[1704124658575,0.860466,42832.0,42831.0,0.0614]
[1704124658791,0.099523,42832.0,42831.0,0.0714]
[1704124658996,0.099523,42832.0,42831.0,0.30461711]
[1704124659224,0.100523,42832.0,42831.0,0.50461711]
[1704124659431,0.007,42832.0,42831.0,0.50461711]
[1704124659640,0.466811,42844.0,42842.0,0.0614]
[1704124659843,0.12179833,42843.0,42842.0,0.0614]
[1704124660051,0.093495,42843.0,42842.0,0.0614]
[1704124660467,0.560315,42843.0,42842.0,0.0614]
[1704124661515,0.860315,42843.0,42842.0,0.0614]
[1704124661921,0.870315,42843.0,42842.0,0.0624]
[1704124662329,0.870315,42843.0,42842.0,0.001]
[1704124662524,0.870315,42843.0,42842.0,0.002]
[1704124662525,0.936855,42843.0,42842.0,0.002]
[1704124663352,1.03014185,42843.0,42842.0,0.002]
[1704124664580,0.97560185,42843.0,42842.0,0.002]
[1704124665612,1.02750185,42843.0,42842.0,0.002]
[1704124666262,0.934215,42843.0,42842.0,0.002]
[1704124666690,0.882315,42843.0,42842.0,0.002]
[1704124667551,0.882315,42843.0,42842.0,0.0634]
[1704124667784,0.812315,42843.0,42842.0,0.0634]
[1704124669438,0.512315,42843.0,42842.0,0.0634]
[1704124669650,0.022,42843.0,42842.0,0.0634]
[1704124670481,0.012,42843.0,42842.0,0.0624]
[1704124670727,0.017,42843.0,42842.0,0.0634]
[1704124671386,0.005,42843.0,42842.0,0.0624]
[1704124671784,0.47282,42843.0,42842.0,0.0624]
[1704124671898,0.46882,42843.0,42842.0,0.0614]
[1704124672355,0.47182,42843.0,42840.0,0.01]
[1704124672587,0.466842,42841.0,42840.0,0.0614]
[1704124672809,0.466842,42841.0,42839.0,0.0714]
[1704124673051,0.466859,42840.0,42839.0,0.0714]
[1704124674249,0.466859,42840.0,42839.0,0.0744]
[1704124674891,0.466859,42840.0,42839.0,0.0764]
[1704124675102,0.193484,42846.0,42840.0,0.01]
[1704124675322,0.466842,42841.0,42840.0,0.01]
[1704124675531,0.466842,42841.0,42840.0,0.0714]
[1704124676876,0.466842,42841.0,42840.0,0.0724]
[1704124677238,0.466842,42841.0,42840.0,0.0714]
[1704124677444,0.466842,42841.0,42840.0,0.0709]
[1704124678158,0.32670111,42846.0,42841.0,0.01]
[1704124678401,0.42670111,42846.0,42841.0,0.01]
[1704124678632,0.466807,42845.0,42841.0,0.01]
[1704124678887,0.514447,42845.0,42841.0,0.01]
[1704124679127,0.05448,42844.0,42841.0,0.01]
[1704124679782,0.05448,42844.0,42841.0,0.011]
[1704124680223,0.05448,42844.0,42841.0,0.01]
[1704124680431,0.05448,42844.0,42841.0,0.011]
[1704124680643,0.466831,42842.0,42841.0,0.011]
[1704124681282,0.466831,42842.0,42841.0,0.01]
[1704124681715,0.007,42844.0,42841.0,0.01]
[1704124681716,0.003,42844.0,42841.0,0.01]
[1704124681928,0.466831,42842.0,42841.0,0.01]
[1704124682136,0.467831,42842.0,42841.0,0.01]
[1704124685505,0.001,42842.0,42841.0,0.0709]
[1704124688383,0.467831,42842.0,42841.0,0.01]
[1704124693527,0.001,42842.0,42841.0,0.0709]
[1704124695308,0.001,42842.0,42841.0,0.01]
[1704124695532,0.467831,42842.0,42839.0,0.01]
[1704124695747,0.467831,42842.0,42838.0,0.2857]
[1704124695748,0.466845,42841.0,42840.0,0.01]
[1704124695965,0.466845,42841.0,42838.0,0.2248]
[1704124696189,0.466845,42841.0,42835.0,0.0609]
[1704124696190,0.466864,42839.0,42835.0,0.2873]
[1704124696403,0.466864,42839.0,42837.0,0.0609]
[1704124698640,0.466864,42839.0,42838.0,0.0709]
[1704124698641,0.001,42839.0,42838.0,0.0709]
[1704124699731,0.466843,42841.0,42840.0,0.0609]
[1704124700170,0.466843,42841.0,42839.0,0.2233]
[1704124700396,0.05559771,42840.0,42839.0,0.2233]
[1704124700622,0.466853,42840.0,42838.0,0.004]
[1704124700847,0.52280756,42839.0,42838.0,0.007]
[1704124701289,0.466864,42839.0,42836.0,0.0609]
[1704124701525,0.466864,42839.0,42834.0,0.0609]
[1704124701526,0.466886,42837.0,42834.0,0.0609]
[1704124701759,0.05594356,42839.0,42835.0,0.01]
[1704124701760,0.466897,42836.0,42835.0,0.01]
[1704124701984,0.466897,42836.0,42834.0,0.0609]
[1704124703269,0.467897,42836.0,42834.0,0.0699]
[1704124703478,0.52384056,42836.0,42834.0,0.0699]
[1704124703681,0.467897,42836.0,42834.0,0.0699]
[1704124703887,0.467897,42836.0,42835.0,0.01]
[1704124704092,0.467897,42836.0,42834.0,0.0759]
[1704124704321,0.52285056,42835.0,42834.0,0.015]
[1704124704533,0.52285056,42835.0,42834.0,0.009]
[1704124704737,0.52285056,42835.0,42834.0,0.017]
[1704124705170,0.52285056,42835.0,42834.0,0.008]
[1704124705398,0.466907,42835.0,42834.0,0.008]
[1704124706063,0.52289958,42835.0,42834.0,0.008]
[1704124706488,0.466907,42835.0,42834.0,0.008]
[1704124706706,0.467907,42835.0,42834.0,0.018]
[1704124706915,0.467907,42835.0,42834.0,0.01]
[1704124707129,0.52489303,42835.0,42834.0,0.019]
[1704124707555,0.468907,42835.0,42834.0,0.019]
[1704124708407,0.468907,42835.0,42834.0,0.029]
[1704124709020,0.468907,42835.0,42834.0,0.019]
[1704124710106,0.468907,42835.0,42834.0,0.029]
[1704124712490,0.468907,42835.0,42834.0,0.019]
[1704124715659,1.40692338,42835.0,42834.0,0.019]
[1704124715875,1.43472224,42835.0,42834.0,0.019]
[1704124716107,1.29572796,42835.0,42834.0,0.019]
[1704124716739,1.43482796,42835.0,42834.0,0.019]
[1704124716950,1.55706796,42835.0,42827.0,0.2187]
[1704124717165,1.55706796,42835.0,42826.0,0.6571]
[1704124717166,0.466955,42831.0,42826.0,0.718]
[1704124717334,0.52292138,42831.0,42826.0,0.6571]
[1704124717563,0.05682,42830.0,42826.0,0.6571]
[1704124718762,0.05682,42830.0,42827.0,0.0609]
[1704124718978,0.52292138,42831.0,42827.0,0.0709]
[1704124718979,0.57350138,42831.0,42827.0,0.0709]
[1704124719202,0.57350138,42831.0,42827.0,0.0609]
[1704124719416,0.002,42830.0,42827.0,0.0609]
[1704124720084,0.005,42830.0,42827.0,0.0609]
[1704124720288,0.002,42830.0,42827.0,0.0609]
[1704124720501,0.516038,42831.0,42827.0,0.0609]
[1704124720708,0.005,42830.0,42827.0,0.0609]
[1704124721150,0.471963,42830.0,42827.0,0.0609]
[1704124721360,0.466963,42830.0,42827.0,0.0609]
[1704124721998,0.466963,42830.0,42826.0,0.01]
[1704124722236,0.466963,42830.0,42826.0,0.0709]
[1704124722656,0.468963,42830.0,42826.0,0.01]
[1704124723294,0.468963,42830.0,42826.0,0.00442644]
[1704124723997,0.466973,42829.0,42825.0,0.29122644]
[1704124724623,0.466973,42829.0,42825.0,0.2868]
[1704124726590,0.467973,42829.0,42825.0,0.2868]
[1704124727960,0.397973,42829.0,42825.0,0.2868]
[1704124728210,0.466984,42828.0,42825.0,0.2868]
[1704124729774,0.466984,42828.0,42826.0,0.00442644]
[1704124730945,0.466984,42828.0,42826.0,0.00642644]
[1704124731918,0.466984,42828.0,42827.0,0.00442644]
[1704124733609,0.466984,42828.0,42827.0,0.00642644]
[1704124737313,0.518944,42828.0,42827.0,0.00642644]
[1704124737679,0.466984,42828.0,42827.0,0.00642644]
[1704124740200,0.466984,42828.0,42827.0,0.002]
[1704124740413,0.466984,42828.0,42827.0,0.00642644]
[1704124741458,0.519724,42828.0,42827.0,0.00642644]
[1704124741681,0.466984,42828.0,42827.0,0.00642644]
[1704124743663,0.093519,42830.0,42827.0,0.06732644]
[1704124744594,0.093519,42830.0,42828.0,0.00442644]
[1704124744787,0.093519,42830.0,42827.0,0.0629]
[1704124745032,0.093519,42830.0,42828.0,0.00442644]
[1704124745241,0.14948538,42830.0,42828.0,0.00442644]
[1704124745465,0.15148538,42830.0,42828.0,0.00442644]
[1704124745676,0.61844938,42830.0,42828.0,0.00442644]
[1704124745884,0.61944938,42830.0,42828.0,0.00442644]
[1704124746086,0.61644938,42830.0,42828.0,0.00442644]
[1704124746293,0.61844938,42830.0,42828.0,0.00442644]
[1704124746916,0.62144938,42830.0,42828.0,0.00442644]
[1704124748208,0.62144938,42830.0,42828.0,0.06532644]
[1704124748426,0.62144938,42830.0,42829.0,0.0609]
[1704124748427,0.005,42830.0,42829.0,0.0609]
[1704124748660,0.003,42830.0,42829.0,0.0609]
[1704124749122,0.02767704,42831.0,42829.0,0.0609]
[1704124749343,0.02767704,42831.0,42830.0,0.0609]
[1704124749579,0.08394957,42835.0,42832.0,0.0609]
[1704124749580,0.05596638,42835.0,42832.0,0.0609]
[1704124749806,0.05596638,42839.0,42837.0,0.0609]
[1704124750255,0.08394957,42840.0,42837.0,0.0609]
[1704124750256,0.05596638,42840.0,42837.0,0.0609]
[1704124750515,0.55079557,42841.0,42837.0,0.0609]
[1704124750516,0.52281238,42841.0,42837.0,0.2859]
[1704124750706,0.05596638,42840.0,42837.0,0.2859]
[1704124750956,0.0935,42839.0,42837.0,0.2859]
[1704124752334,0.0935,42839.0,42837.0,0.2869]
[1704124752555,0.1035,42839.0,42837.0,0.2879]
[1704124752784,0.1035,42839.0,42837.0,0.2869]
[1704124753004,0.1125,42839.0,42837.0,0.2879]
[1704124754825,0.579364,42839.0,42837.0,0.2879]
[1704124756166,0.579371,42839.0,42837.0,0.2879]
[1704124756621,0.579371,42839.0,42837.0,0.29232644]
[1704124757783,0.466875,42838.0,42837.0,0.29232644]
[1704124758696,0.1035,42839.0,42837.0,0.29132644]
[1704124758915,0.466875,42838.0,42837.0,0.29132644]
[1704124759146,0.473875,42838.0,42837.0,0.29132644]
[1704124759373,0.58828138,42838.0,42837.0,0.001]
[1704124759604,0.58828138,42838.0,42834.0,0.00442644]
[1704124759605,0.58128138,42838.0,42834.0,0.00442644]
[1704124759825,0.73724777,42838.0,42837.0,0.001]
[1704124760046,1.24261105,42838.0,42837.0,0.001]
[1704124760262,1.48278701,42838.0,42837.0,0.002]
[1704124760484,1.24261105,42838.0,42837.0,0.001]
[1704124760905,0.1,42836.0,42830.0,0.06532644]
[1704124761126,0.05592281,42833.0,42830.0,0.06532644]
[1704124761345,0.46694,42832.0,42830.0,0.06532644]
[1704124761995,0.46694,42832.0,42830.0,0.06632644]
[1704124762271,0.46694,42832.0,42831.0,0.0609]
[1704124762518,0.001,42833.0,42832.0,0.0609]
[1704124762741,0.3,42834.0,42832.0,0.0609]
[1704124763195,0.3,42834.0,42833.0,0.0609]
[1704124765184,0.303,42834.0,42833.0,0.0609]
[1704124765411,0.3,42834.0,42833.0,0.0609]
[1704124765608,0.302,42834.0,42833.0,0.0609]
[1704124765805,0.771918,42834.0,42833.0,0.0609]
[1704124770581,0.79965326,42834.0,42831.0,0.06532644]
[1704124770791,0.466939,42833.0,42831.0,0.06532644]
[1704124771004,0.46694,42832.0,42831.0,0.06532644]
[1704124772872,0.46694,42832.0,42831.0,0.06732644]
[1704124777620,0.14942281,42839.0,42837.0,0.0609]
[1704124777820,0.3,42838.0,42837.0,0.0609]
[1704124778029,0.0935,42839.0,42837.0,0.0609]
[1704124778641,0.466875,42838.0,42836.0,0.0609]
[1704124778856,0.05208,42838.0,42837.0,0.001]
[1704124779069,0.775875,42838.0,42837.0,0.002]
[1704124779277,1.25705632,42838.0,42837.0,0.001]
[1704124779486,1.28005632,42838.0,42837.0,0.002]
[1704124779688,1.44928306,42838.0,42837.0,0.002]
[1704124779894,1.44928306,42838.0,42831.0,0.00442644]
[1704124780151,0.46694,42832.0,42831.0,0.00442644]
[1704124781419,0.46694,42832.0,42831.0,0.06532644]
[1704124782112,0.46694,42832.0,42831.0,0.06732644]
[1704124787392,0.02772968,42834.0,42833.0,0.06532644]
[1704124787534,0.02772968,42834.0,42833.0,0.00442644]
[1704124787752,0.466908,42835.0,42833.0,0.00442644]
[1704124787985,0.466908,42835.0,42834.0,0.00442644]
[1704124787986,0.5228426,42835.0,42834.0,0.00442644]
[1704124788194,0.4528426,42835.0,42834.0,0.00442644]
[1704124788590,0.4528426,42835.0,42833.0,0.2335]
[1704124788795,0.003,42834.0,42833.0,0.29882644]
[1704124789407,0.48425936,42835.0,42833.0,0.29882644]
[1704124789606,0.48425936,42835.0,42833.0,0.2944]
[1704124789956,0.48825936,42835.0,42834.0,0.00442644]
[1704124790171,0.48425936,42835.0,42834.0,0.00442644]
[1704124790379,0.48425936,42835.0,42834.0,0.06532644]
[1704124790596,0.48125936,42835.0,42834.0,0.06532644]
[1704124791244,0.08435136,42835.0,42834.0,0.06532644]
[1704124791460,0.55125936,42835.0,42834.0,0.06532644]
[1704124791674,0.55425936,42835.0,42834.0,0.06532644]
[1704124792091,0.50232476,42835.0,42834.0,0.06532644]
[1704124792566,0.50232476,42835.0,42834.0,0.0609]
[1704124792785,0.50232476,42835.0,42834.0,0.06532644]
[1704124793217,0.007,42835.0,42834.0,0.06532644]
[1704124794358,0.004,42835.0,42834.0,0.06532644]
[1704124794545,0.766881,42838.0,42837.0,0.0609]
[1704124795692,0.766881,42838.0,42836.0,0.2381]
[1704124795905,0.772881,42838.0,42837.0,0.001]
[1704124796221,0.3619346,42838.0,42837.0,0.001]
[1704124796433,0.8288176,42838.0,42837.0,0.001]
[1704124796644,0.8328176,42838.0,42837.0,0.002]
[1704124797056,0.8328176,42838.0,42837.0,0.0629]
[1704124797463,0.8328176,42838.0,42837.0,0.0619]
[1704124797464,0.8268176,42838.0,42837.0,0.0619]
[1704124797879,0.8328176,42838.0,42837.0,0.0619]
[1704124798111,0.8268176,42838.0,42837.0,0.0619]
[1704124798853,0.8328176,42838.0,42837.0,0.0629]
[1704124799491,0.5328176,42838.0,42837.0,0.0629]